{"text_format":"1","workbook":"xlsx","n_sheets":4,"sheets":["Control Charts","Target","DATA","DATA_CHART"],"not_rendered":{"charts":1,"images":1,"macros":1,"external_links":1,"defined_names":16,"comments":0,"pivot_tables":0},"unopened":[],"bounds":{"document_bytes":16777216,"sheet_cells":100000,"rows_first":2000,"rows_last":500,"rows_between":2000,"halvings":0,"cell_chars":16384,"cell_head_chars":4096},"cells_cut":0,"cells_raw":0,"read":"whole","date_system":"1900"}

{"sheet":"Control Charts","index":0,"n_rows":13,"n_cols":14,"rows_kept":13,"cut":false,"hidden":false,"merged":[[0,3,0,7],[8,4,8,5],[9,4,9,8],[10,4,10,8],[11,4,11,5],[2,4,2,5],[3,4,3,5],[4,4,4,5],[5,4,5,5],[6,4,6,5],[7,4,7,5]]}
[null,null,null,"TEXAS DEPARTMENT OF TRANSPORTATION                                                                                                                  Plot Control Chart - 2014 QC/QA Template",null,null,null,null,null,null,"TXCC14 - File Version :: 07-22-2025"]
[]
[null,null,null,"SAMPLE ID:",{"$f":"IFERROR(IF(INDIRECT(FIRST_LOT&\"!A1\")<>\"\",INDIRECT(FIRST_LOT&\"!A1\"),\"\"),\"\")","v":""},null,null,"SAMPLED DATE:",{"$f":"IFERROR(IF(INDIRECT(FIRST_LOT&\"!B1\")<>\"\",INDIRECT(FIRST_LOT&\"!B1\"),\"\"),\"\")","v":""}]
[null,null,null,"LOT NUMBER:",{"$f":"IFERROR(IF(INDIRECT(FIRST_LOT&\"!A2\")<>\"\",INDIRECT(FIRST_LOT&\"!A2\"),\"\"),\"\")","v":""},null,null,"LETTING DATE:",{"$f":"IFERROR(IF(INDIRECT(FIRST_LOT&\"!B2\")<>\"\",INDIRECT(FIRST_LOT&\"!B2\"),\"\"),\"\")","v":""}]
[null,null,null,"SAMPLE STATUS:",{"$f":"IFERROR(IF(INDIRECT(FIRST_LOT&\"!A3\")<>\"\",INDIRECT(FIRST_LOT&\"!A3\"),\"\"),\"\")","v":""},null,null,"CONTROLLING CSJ:",{"$f":"IFERROR(IF(INDIRECT(FIRST_LOT&\"!B3\")<>\"\",INDIRECT(FIRST_LOT&\"!B3\"),\"\"),\"\")","v":""}]
[null,null,null,"COUNTY:",{"$f":"IFERROR(IF(INDIRECT(FIRST_LOT&\"!A4\")<>\"\",INDIRECT(FIRST_LOT&\"!A4\"),\"\"),\"\")","v":""},null,null,"SPEC YEAR:",{"$f":"IFERROR(IF(INDIRECT(FIRST_LOT&\"!B4\")<>\"\",INDIRECT(FIRST_LOT&\"!B4\"),\"\"),\"\")","v":""}]
[null,null,null,"SAMPLED BY:",{"$f":"IFERROR(IF(INDIRECT(FIRST_LOT&\"!A5\")<>\"\",INDIRECT(FIRST_LOT&\"!A5\"),\"\"),\"\")","v":""},null,null,"SPEC ITEM:",{"$f":"IFERROR(IF(INDIRECT(FIRST_LOT&\"!B5\")<>\"\",INDIRECT(FIRST_LOT&\"!B5\"),\"\"),\"\")","v":""}]
[null,null,null,"SAMPLE LOCATION:",{"$f":"IFERROR(IF(INDIRECT(FIRST_LOT&\"!A6\")<>\"\",INDIRECT(FIRST_LOT&\"!A6\"),\"\"),\"\")","v":""},null,null,"SPECIAL PROVISION:",{"$f":"IFERROR(IF(INDIRECT(FIRST_LOT&\"!B6\")<>\"\",INDIRECT(FIRST_LOT&\"!B6\"),\"\"),\"\")","v":""},null,"Select a lot:"]
[null,null,null,"MATERIAL CODE:",{"$f":"IFERROR(IF(INDIRECT(FIRST_LOT&\"!A7\")<>\"\",INDIRECT(FIRST_LOT&\"!A7\"),\"\"),\"\")","v":""},null,null,"MIX TYPE:",{"$f":"IFERROR(IF(INDIRECT(FIRST_LOT&\"!B7\")<>\"\",INDIRECT(FIRST_LOT&\"!B7\"),\"\"),\"\")","v":""}]
[null,null,null,"MATERIAL NAME:",{"$f":"IFERROR(IF(INDIRECT(FIRST_LOT&\"!A8\")<>\"\",INDIRECT(FIRST_LOT&\"!A8\"),\"\"),\"\")","v":""}]
[null,null,null,"PRODUCER:",{"$f":"IFERROR(IF(INDIRECT(FIRST_LOT&\"!A9\")<>\"\",INDIRECT(FIRST_LOT&\"!A9\"),\"\"),\"\")","v":""}]
[null,null,null,"AREA ENGINEER:",{"$f":"IFERROR(IF(INDIRECT(FIRST_LOT&\"!A10\")<>\"\",INDIRECT(FIRST_LOT&\"!A10\"),\"\"),\"\")","v":""},null,null,"PROJECT MANAGER:",{"$f":"IFERROR(IF(INDIRECT(FIRST_LOT&\"!B8\")<>\"\",INDIRECT(FIRST_LOT&\"!B8\"),\"\"),\"\")","v":""},null,"Plot what:"]
[null,null,null,"COURSE\\LIFT:",{"$f":"IFERROR(IF(INDIRECT(FIRST_LOT&\"!B9\")<>\"\",INDIRECT(FIRST_LOT&\"!B9\"),\"\"),\"\")","v":""},"STATION:",{"$f":"IFERROR(IF(INDIRECT(FIRST_LOT&\"!B10\")<>\"\",INDIRECT(FIRST_LOT&\"!B10\"),\"\"),\"\")","v":""},"DIST. FROM CL:",{"$f":"IFERROR(IF(INDIRECT(FIRST_LOT&\"!B11\")<>\"\",INDIRECT(FIRST_LOT&\"!B11\"),\"\"),\"\")","v":""},null,"In-place air voids",null,null,{"$f":"VLOOKUP(K13,DATA!B2:C19,2,0)","v":17}]

{"sheet":"Target","index":1,"n_rows":20,"n_cols":10,"rows_kept":20,"cut":false,"hidden":true,"merged":[]}
[null,null,"Sieve1",null,{"$error":"#N/A"},{"$error":"#N/A"}]
[null,null,"Sieve2",null,{"$error":"#N/A"},{"$error":"#N/A"}]
[null,null,"Sieve3",null,{"$error":"#N/A"},{"$error":"#N/A"}]
[null,null,"Sieve4",null,{"$error":"#N/A"},{"$error":"#N/A"}]
[null,null,"Sieve5",null,{"$error":"#N/A"},{"$error":"#N/A"}]
[null,null,"Sieve6",null,{"$error":"#N/A"},{"$error":"#N/A"}]
[null,null,"Sieve7",null,{"$error":"#N/A"},{"$error":"#N/A"}]
[null,null,"Sieve8",null,{"$error":"#N/A"},{"$error":"#N/A"}]
[null,null,"Sieve9",null,{"$error":"#N/A"},{"$error":"#N/A"}]
[null,null,"Sieve10",null,{"$error":"#N/A"},{"$error":"#N/A"}]
[null,null,"Pan",null,{"$error":"#N/A"},{"$error":"#N/A"}]
[null,null,"AC",0,-0.3,0.3]
[null,null,"Rice"]
[null,null,"Density",0,{"$error":"#N/A"},{"$error":"#N/A"}]
[null,null,"SG"]
[null,null,"VIM"]
[null,null,"In-place air voids",null,null,null,0,null,null,8]
[]
[]
[{"$f":"SUMPRODUCT(MID(0&A2,LARGE(INDEX(ISNUMBER(--MID(A2,ROW($1:$25),1))*\n ROW($1:$25),0),ROW($1:$25))+1,1)*10^ROW($1:$25)/10)","v":0}]

{"sheet":"DATA","index":2,"n_rows":102,"n_cols":6,"rows_kept":102,"cut":false,"hidden":true,"merged":[]}
[null,"FIRST LOT",{"$f":"IF(LOT_NO=\"\",F2,LOT_NO)","v":""},null,"Lots","SortedLots"]
[null,"2\"",{"$f":"MATCH(B2,INDIRECT(FIRST_LOT&\"!SIEVES\"),0)","v":{"$error":"#REF!"}},null,null,{"$f":"IFERROR(INDEX(LOTSALOTS,SMALL((IF(LEN(LOTSALOTS),ROW(INDIRECT(\"1:\"&ROWS(LOTSALOTS))))),ROW(A1)),1),\"\")","v":""}]
[null,"1-1/2\"",{"$error":"#REF!"},null,null,{"$f":"IFERROR(INDEX(LOTSALOTS,SMALL((IF(LEN(LOTSALOTS),ROW(INDIRECT(\"1:\"&ROWS(LOTSALOTS))))),ROW(A2)),1),\"\")","v":""}]
[null,"1\"",{"$error":"#REF!"},null,null,{"$f":"IFERROR(INDEX(LOTSALOTS,SMALL((IF(LEN(LOTSALOTS),ROW(INDIRECT(\"1:\"&ROWS(LOTSALOTS))))),ROW(A3)),1),\"\")","v":""}]
[null,"3/4\"",{"$error":"#REF!"},null,null,{"$f":"IFERROR(INDEX(LOTSALOTS,SMALL((IF(LEN(LOTSALOTS),ROW(INDIRECT(\"1:\"&ROWS(LOTSALOTS))))),ROW(A4)),1),\"\")","v":""}]
[null,"1/2\"",{"$error":"#REF!"},null,null,{"$f":"IFERROR(INDEX(LOTSALOTS,SMALL((IF(LEN(LOTSALOTS),ROW(INDIRECT(\"1:\"&ROWS(LOTSALOTS))))),ROW(A5)),1),\"\")","v":""}]
[null,"#4",{"$error":"#REF!"},null,null,{"$f":"IFERROR(INDEX(LOTSALOTS,SMALL((IF(LEN(LOTSALOTS),ROW(INDIRECT(\"1:\"&ROWS(LOTSALOTS))))),ROW(A6)),1),\"\")","v":""}]
[null,"#8",{"$error":"#REF!"},null,null,{"$f":"IFERROR(INDEX(LOTSALOTS,SMALL((IF(LEN(LOTSALOTS),ROW(INDIRECT(\"1:\"&ROWS(LOTSALOTS))))),ROW(A7)),1),\"\")","v":""}]
[null,"#30",{"$error":"#REF!"},null,null,{"$f":"IFERROR(INDEX(LOTSALOTS,SMALL((IF(LEN(LOTSALOTS),ROW(INDIRECT(\"1:\"&ROWS(LOTSALOTS))))),ROW(A8)),1),\"\")","v":""}]
[null,"#50",{"$error":"#REF!"},null,null,{"$f":"IFERROR(INDEX(LOTSALOTS,SMALL((IF(LEN(LOTSALOTS),ROW(INDIRECT(\"1:\"&ROWS(LOTSALOTS))))),ROW(A9)),1),\"\")","v":""}]
[null,"#200",{"$error":"#REF!"},null,null,{"$f":"IFERROR(INDEX(LOTSALOTS,SMALL((IF(LEN(LOTSALOTS),ROW(INDIRECT(\"1:\"&ROWS(LOTSALOTS))))),ROW(A10)),1),\"\")","v":""}]
[null,"Pan",11,null,null,{"$f":"IFERROR(INDEX(LOTSALOTS,SMALL((IF(LEN(LOTSALOTS),ROW(INDIRECT(\"1:\"&ROWS(LOTSALOTS))))),ROW(A11)),1),\"\")","v":""}]
[null,"AC",12,null,null,{"$f":"IFERROR(INDEX(LOTSALOTS,SMALL((IF(LEN(LOTSALOTS),ROW(INDIRECT(\"1:\"&ROWS(LOTSALOTS))))),ROW(A12)),1),\"\")","v":""}]
[null,"Rice",13,null,null,{"$f":"IFERROR(INDEX(LOTSALOTS,SMALL((IF(LEN(LOTSALOTS),ROW(INDIRECT(\"1:\"&ROWS(LOTSALOTS))))),ROW(A13)),1),\"\")","v":""}]
[null,"Density",14,null,null,{"$f":"IFERROR(INDEX(LOTSALOTS,SMALL((IF(LEN(LOTSALOTS),ROW(INDIRECT(\"1:\"&ROWS(LOTSALOTS))))),ROW(A14)),1),\"\")","v":""}]
[null,"SG",15,null,null,{"$f":"IFERROR(INDEX(LOTSALOTS,SMALL((IF(LEN(LOTSALOTS),ROW(INDIRECT(\"1:\"&ROWS(LOTSALOTS))))),ROW(A15)),1),\"\")","v":""}]
[null,"VIM",16,null,null,{"$f":"IFERROR(INDEX(LOTSALOTS,SMALL((IF(LEN(LOTSALOTS),ROW(INDIRECT(\"1:\"&ROWS(LOTSALOTS))))),ROW(A16)),1),\"\")","v":""}]
[null,"In-place air voids",17,null,null,{"$f":"IFERROR(INDEX(LOTSALOTS,SMALL((IF(LEN(LOTSALOTS),ROW(INDIRECT(\"1:\"&ROWS(LOTSALOTS))))),ROW(A17)),1),\"\")","v":""}]
[null,"VMA",18,null,null,{"$f":"IFERROR(INDEX(LOTSALOTS,SMALL((IF(LEN(LOTSALOTS),ROW(INDIRECT(\"1:\"&ROWS(LOTSALOTS))))),ROW(A18)),1),\"\")","v":""}]
[null,"Drain down",19,null,null,{"$f":"IFERROR(INDEX(LOTSALOTS,SMALL((IF(LEN(LOTSALOTS),ROW(INDIRECT(\"1:\"&ROWS(LOTSALOTS))))),ROW(A19)),1),\"\")","v":""}]
[null,"Cantabro loss",20,null,null,{"$f":"IFERROR(INDEX(LOTSALOTS,SMALL((IF(LEN(LOTSALOTS),ROW(INDIRECT(\"1:\"&ROWS(LOTSALOTS))))),ROW(A20)),1),\"\")","v":""}]
[null,"Mem. app. rate",21,null,null,{"$f":"IFERROR(INDEX(LOTSALOTS,SMALL((IF(LEN(LOTSALOTS),ROW(INDIRECT(\"1:\"&ROWS(LOTSALOTS))))),ROW(A21)),1),\"\")","v":""}]
[null,null,null,null,null,{"$f":"IFERROR(INDEX(LOTSALOTS,SMALL((IF(LEN(LOTSALOTS),ROW(INDIRECT(\"1:\"&ROWS(LOTSALOTS))))),ROW(A22)),1),\"\")","v":""}]
[null,null,null,null,null,{"$f":"IFERROR(INDEX(LOTSALOTS,SMALL((IF(LEN(LOTSALOTS),ROW(INDIRECT(\"1:\"&ROWS(LOTSALOTS))))),ROW(A23)),1),\"\")","v":""}]
[null,null,null,null,null,{"$f":"IFERROR(INDEX(LOTSALOTS,SMALL((IF(LEN(LOTSALOTS),ROW(INDIRECT(\"1:\"&ROWS(LOTSALOTS))))),ROW(A24)),1),\"\")","v":""}]
[null,null,null,null,null,{"$f":"IFERROR(INDEX(LOTSALOTS,SMALL((IF(LEN(LOTSALOTS),ROW(INDIRECT(\"1:\"&ROWS(LOTSALOTS))))),ROW(A25)),1),\"\")","v":""}]
[null,null,null,null,null,{"$f":"IFERROR(INDEX(LOTSALOTS,SMALL((IF(LEN(LOTSALOTS),ROW(INDIRECT(\"1:\"&ROWS(LOTSALOTS))))),ROW(A26)),1),\"\")","v":""}]
[null,null,null,null,null,{"$f":"IFERROR(INDEX(LOTSALOTS,SMALL((IF(LEN(LOTSALOTS),ROW(INDIRECT(\"1:\"&ROWS(LOTSALOTS))))),ROW(A27)),1),\"\")","v":""}]
[null,null,null,null,null,{"$f":"IFERROR(INDEX(LOTSALOTS,SMALL((IF(LEN(LOTSALOTS),ROW(INDIRECT(\"1:\"&ROWS(LOTSALOTS))))),ROW(A28)),1),\"\")","v":""}]
[null,null,null,null,null,{"$f":"IFERROR(INDEX(LOTSALOTS,SMALL((IF(LEN(LOTSALOTS),ROW(INDIRECT(\"1:\"&ROWS(LOTSALOTS))))),ROW(A29)),1),\"\")","v":""}]
[null,null,null,null,null,{"$f":"IFERROR(INDEX(LOTSALOTS,SMALL((IF(LEN(LOTSALOTS),ROW(INDIRECT(\"1:\"&ROWS(LOTSALOTS))))),ROW(A30)),1),\"\")","v":""}]
[null,null,null,null,null,{"$f":"IFERROR(INDEX(LOTSALOTS,SMALL((IF(LEN(LOTSALOTS),ROW(INDIRECT(\"1:\"&ROWS(LOTSALOTS))))),ROW(A31)),1),\"\")","v":""}]
[null,null,null,null,null,{"$f":"IFERROR(INDEX(LOTSALOTS,SMALL((IF(LEN(LOTSALOTS),ROW(INDIRECT(\"1:\"&ROWS(LOTSALOTS))))),ROW(A32)),1),\"\")","v":""}]
[null,null,null,null,null,{"$f":"IFERROR(INDEX(LOTSALOTS,SMALL((IF(LEN(LOTSALOTS),ROW(INDIRECT(\"1:\"&ROWS(LOTSALOTS))))),ROW(A33)),1),\"\")","v":""}]
[null,null,null,null,null,{"$f":"IFERROR(INDEX(LOTSALOTS,SMALL((IF(LEN(LOTSALOTS),ROW(INDIRECT(\"1:\"&ROWS(LOTSALOTS))))),ROW(A34)),1),\"\")","v":""}]
[null,null,null,null,null,{"$f":"IFERROR(INDEX(LOTSALOTS,SMALL((IF(LEN(LOTSALOTS),ROW(INDIRECT(\"1:\"&ROWS(LOTSALOTS))))),ROW(A35)),1),\"\")","v":""}]
[null,null,null,null,null,{"$f":"IFERROR(INDEX(LOTSALOTS,SMALL((IF(LEN(LOTSALOTS),ROW(INDIRECT(\"1:\"&ROWS(LOTSALOTS))))),ROW(A36)),1),\"\")","v":""}]
[null,null,null,null,null,{"$f":"IFERROR(INDEX(LOTSALOTS,SMALL((IF(LEN(LOTSALOTS),ROW(INDIRECT(\"1:\"&ROWS(LOTSALOTS))))),ROW(A37)),1),\"\")","v":""}]
[null,null,null,null,null,{"$f":"IFERROR(INDEX(LOTSALOTS,SMALL((IF(LEN(LOTSALOTS),ROW(INDIRECT(\"1:\"&ROWS(LOTSALOTS))))),ROW(A38)),1),\"\")","v":""}]
[null,null,null,null,null,{"$f":"IFERROR(INDEX(LOTSALOTS,SMALL((IF(LEN(LOTSALOTS),ROW(INDIRECT(\"1:\"&ROWS(LOTSALOTS))))),ROW(A39)),1),\"\")","v":""}]
[null,null,null,null,null,{"$f":"IFERROR(INDEX(LOTSALOTS,SMALL((IF(LEN(LOTSALOTS),ROW(INDIRECT(\"1:\"&ROWS(LOTSALOTS))))),ROW(A40)),1),\"\")","v":""}]
[null,null,null,null,null,{"$f":"IFERROR(INDEX(LOTSALOTS,SMALL((IF(LEN(LOTSALOTS),ROW(INDIRECT(\"1:\"&ROWS(LOTSALOTS))))),ROW(A41)),1),\"\")","v":""}]
[null,null,null,null,null,{"$f":"IFERROR(INDEX(LOTSALOTS,SMALL((IF(LEN(LOTSALOTS),ROW(INDIRECT(\"1:\"&ROWS(LOTSALOTS))))),ROW(A42)),1),\"\")","v":""}]
[null,null,null,null,null,{"$f":"IFERROR(INDEX(LOTSALOTS,SMALL((IF(LEN(LOTSALOTS),ROW(INDIRECT(\"1:\"&ROWS(LOTSALOTS))))),ROW(A43)),1),\"\")","v":""}]
[null,null,null,null,null,{"$f":"IFERROR(INDEX(LOTSALOTS,SMALL((IF(LEN(LOTSALOTS),ROW(INDIRECT(\"1:\"&ROWS(LOTSALOTS))))),ROW(A44)),1),\"\")","v":""}]
[null,null,null,null,null,{"$f":"IFERROR(INDEX(LOTSALOTS,SMALL((IF(LEN(LOTSALOTS),ROW(INDIRECT(\"1:\"&ROWS(LOTSALOTS))))),ROW(A45)),1),\"\")","v":""}]
[null,null,null,null,null,{"$f":"IFERROR(INDEX(LOTSALOTS,SMALL((IF(LEN(LOTSALOTS),ROW(INDIRECT(\"1:\"&ROWS(LOTSALOTS))))),ROW(A46)),1),\"\")","v":""}]
[null,null,null,null,null,{"$f":"IFERROR(INDEX(LOTSALOTS,SMALL((IF(LEN(LOTSALOTS),ROW(INDIRECT(\"1:\"&ROWS(LOTSALOTS))))),ROW(A47)),1),\"\")","v":""}]
[null,null,null,null,null,{"$f":"IFERROR(INDEX(LOTSALOTS,SMALL((IF(LEN(LOTSALOTS),ROW(INDIRECT(\"1:\"&ROWS(LOTSALOTS))))),ROW(A48)),1),\"\")","v":""}]
[null,null,null,null,null,{"$f":"IFERROR(INDEX(LOTSALOTS,SMALL((IF(LEN(LOTSALOTS),ROW(INDIRECT(\"1:\"&ROWS(LOTSALOTS))))),ROW(A49)),1),\"\")","v":""}]
[null,null,null,null,null,{"$f":"IFERROR(INDEX(LOTSALOTS,SMALL((IF(LEN(LOTSALOTS),ROW(INDIRECT(\"1:\"&ROWS(LOTSALOTS))))),ROW(A50)),1),\"\")","v":""}]
[null,null,null,null,null,{"$f":"IFERROR(INDEX(LOTSALOTS,SMALL((IF(LEN(LOTSALOTS),ROW(INDIRECT(\"1:\"&ROWS(LOTSALOTS))))),ROW(A51)),1),\"\")","v":""}]
[null,null,null,null,null,{"$f":"IFERROR(INDEX(LOTSALOTS,SMALL((IF(LEN(LOTSALOTS),ROW(INDIRECT(\"1:\"&ROWS(LOTSALOTS))))),ROW(A52)),1),\"\")","v":""}]
[null,null,null,null,null,{"$f":"IFERROR(INDEX(LOTSALOTS,SMALL((IF(LEN(LOTSALOTS),ROW(INDIRECT(\"1:\"&ROWS(LOTSALOTS))))),ROW(A53)),1),\"\")","v":""}]
[null,null,null,null,null,{"$f":"IFERROR(INDEX(LOTSALOTS,SMALL((IF(LEN(LOTSALOTS),ROW(INDIRECT(\"1:\"&ROWS(LOTSALOTS))))),ROW(A54)),1),\"\")","v":""}]
[null,null,null,null,null,{"$f":"IFERROR(INDEX(LOTSALOTS,SMALL((IF(LEN(LOTSALOTS),ROW(INDIRECT(\"1:\"&ROWS(LOTSALOTS))))),ROW(A55)),1),\"\")","v":""}]
[null,null,null,null,null,{"$f":"IFERROR(INDEX(LOTSALOTS,SMALL((IF(LEN(LOTSALOTS),ROW(INDIRECT(\"1:\"&ROWS(LOTSALOTS))))),ROW(A56)),1),\"\")","v":""}]
[null,null,null,null,null,{"$f":"IFERROR(INDEX(LOTSALOTS,SMALL((IF(LEN(LOTSALOTS),ROW(INDIRECT(\"1:\"&ROWS(LOTSALOTS))))),ROW(A57)),1),\"\")","v":""}]
[null,null,null,null,null,{"$f":"IFERROR(INDEX(LOTSALOTS,SMALL((IF(LEN(LOTSALOTS),ROW(INDIRECT(\"1:\"&ROWS(LOTSALOTS))))),ROW(A58)),1),\"\")","v":""}]
[null,null,null,null,null,{"$f":"IFERROR(INDEX(LOTSALOTS,SMALL((IF(LEN(LOTSALOTS),ROW(INDIRECT(\"1:\"&ROWS(LOTSALOTS))))),ROW(A59)),1),\"\")","v":""}]
[null,null,null,null,null,{"$f":"IFERROR(INDEX(LOTSALOTS,SMALL((IF(LEN(LOTSALOTS),ROW(INDIRECT(\"1:\"&ROWS(LOTSALOTS))))),ROW(A60)),1),\"\")","v":""}]
[null,null,null,null,null,{"$f":"IFERROR(INDEX(LOTSALOTS,SMALL((IF(LEN(LOTSALOTS),ROW(INDIRECT(\"1:\"&ROWS(LOTSALOTS))))),ROW(A61)),1),\"\")","v":""}]
[null,null,null,null,null,{"$f":"IFERROR(INDEX(LOTSALOTS,SMALL((IF(LEN(LOTSALOTS),ROW(INDIRECT(\"1:\"&ROWS(LOTSALOTS))))),ROW(A62)),1),\"\")","v":""}]
[null,null,null,null,null,{"$f":"IFERROR(INDEX(LOTSALOTS,SMALL((IF(LEN(LOTSALOTS),ROW(INDIRECT(\"1:\"&ROWS(LOTSALOTS))))),ROW(A63)),1),\"\")","v":""}]
[null,null,null,null,null,{"$f":"IFERROR(INDEX(LOTSALOTS,SMALL((IF(LEN(LOTSALOTS),ROW(INDIRECT(\"1:\"&ROWS(LOTSALOTS))))),ROW(A64)),1),\"\")","v":""}]
[null,null,null,null,null,{"$f":"IFERROR(INDEX(LOTSALOTS,SMALL((IF(LEN(LOTSALOTS),ROW(INDIRECT(\"1:\"&ROWS(LOTSALOTS))))),ROW(A65)),1),\"\")","v":""}]
[null,null,null,null,null,{"$f":"IFERROR(INDEX(LOTSALOTS,SMALL((IF(LEN(LOTSALOTS),ROW(INDIRECT(\"1:\"&ROWS(LOTSALOTS))))),ROW(A66)),1),\"\")","v":""}]
[null,null,null,null,null,{"$f":"IFERROR(INDEX(LOTSALOTS,SMALL((IF(LEN(LOTSALOTS),ROW(INDIRECT(\"1:\"&ROWS(LOTSALOTS))))),ROW(A67)),1),\"\")","v":""}]
[null,null,null,null,null,{"$f":"IFERROR(INDEX(LOTSALOTS,SMALL((IF(LEN(LOTSALOTS),ROW(INDIRECT(\"1:\"&ROWS(LOTSALOTS))))),ROW(A68)),1),\"\")","v":""}]
[null,null,null,null,null,{"$f":"IFERROR(INDEX(LOTSALOTS,SMALL((IF(LEN(LOTSALOTS),ROW(INDIRECT(\"1:\"&ROWS(LOTSALOTS))))),ROW(A69)),1),\"\")","v":""}]
[null,null,null,null,null,{"$f":"IFERROR(INDEX(LOTSALOTS,SMALL((IF(LEN(LOTSALOTS),ROW(INDIRECT(\"1:\"&ROWS(LOTSALOTS))))),ROW(A70)),1),\"\")","v":""}]
[null,null,null,null,null,{"$f":"IFERROR(INDEX(LOTSALOTS,SMALL((IF(LEN(LOTSALOTS),ROW(INDIRECT(\"1:\"&ROWS(LOTSALOTS))))),ROW(A71)),1),\"\")","v":""}]
[null,null,null,null,null,{"$f":"IFERROR(INDEX(LOTSALOTS,SMALL((IF(LEN(LOTSALOTS),ROW(INDIRECT(\"1:\"&ROWS(LOTSALOTS))))),ROW(A72)),1),\"\")","v":""}]
[null,null,null,null,null,{"$f":"IFERROR(INDEX(LOTSALOTS,SMALL((IF(LEN(LOTSALOTS),ROW(INDIRECT(\"1:\"&ROWS(LOTSALOTS))))),ROW(A73)),1),\"\")","v":""}]
[null,null,null,null,null,{"$f":"IFERROR(INDEX(LOTSALOTS,SMALL((IF(LEN(LOTSALOTS),ROW(INDIRECT(\"1:\"&ROWS(LOTSALOTS))))),ROW(A74)),1),\"\")","v":""}]
[null,null,null,null,null,{"$f":"IFERROR(INDEX(LOTSALOTS,SMALL((IF(LEN(LOTSALOTS),ROW(INDIRECT(\"1:\"&ROWS(LOTSALOTS))))),ROW(A75)),1),\"\")","v":""}]
[null,null,null,null,null,{"$f":"IFERROR(INDEX(LOTSALOTS,SMALL((IF(LEN(LOTSALOTS),ROW(INDIRECT(\"1:\"&ROWS(LOTSALOTS))))),ROW(A76)),1),\"\")","v":""}]
[null,null,null,null,null,{"$f":"IFERROR(INDEX(LOTSALOTS,SMALL((IF(LEN(LOTSALOTS),ROW(INDIRECT(\"1:\"&ROWS(LOTSALOTS))))),ROW(A77)),1),\"\")","v":""}]
[null,null,null,null,null,{"$f":"IFERROR(INDEX(LOTSALOTS,SMALL((IF(LEN(LOTSALOTS),ROW(INDIRECT(\"1:\"&ROWS(LOTSALOTS))))),ROW(A78)),1),\"\")","v":""}]
[null,null,null,null,null,{"$f":"IFERROR(INDEX(LOTSALOTS,SMALL((IF(LEN(LOTSALOTS),ROW(INDIRECT(\"1:\"&ROWS(LOTSALOTS))))),ROW(A79)),1),\"\")","v":""}]
[null,null,null,null,null,{"$f":"IFERROR(INDEX(LOTSALOTS,SMALL((IF(LEN(LOTSALOTS),ROW(INDIRECT(\"1:\"&ROWS(LOTSALOTS))))),ROW(A80)),1),\"\")","v":""}]
[null,null,null,null,null,{"$f":"IFERROR(INDEX(LOTSALOTS,SMALL((IF(LEN(LOTSALOTS),ROW(INDIRECT(\"1:\"&ROWS(LOTSALOTS))))),ROW(A81)),1),\"\")","v":""}]
[null,null,null,null,null,{"$f":"IFERROR(INDEX(LOTSALOTS,SMALL((IF(LEN(LOTSALOTS),ROW(INDIRECT(\"1:\"&ROWS(LOTSALOTS))))),ROW(A82)),1),\"\")","v":""}]
[null,null,null,null,null,{"$f":"IFERROR(INDEX(LOTSALOTS,SMALL((IF(LEN(LOTSALOTS),ROW(INDIRECT(\"1:\"&ROWS(LOTSALOTS))))),ROW(A83)),1),\"\")","v":""}]
[null,null,null,null,null,{"$f":"IFERROR(INDEX(LOTSALOTS,SMALL((IF(LEN(LOTSALOTS),ROW(INDIRECT(\"1:\"&ROWS(LOTSALOTS))))),ROW(A84)),1),\"\")","v":""}]
[null,null,null,null,null,{"$f":"IFERROR(INDEX(LOTSALOTS,SMALL((IF(LEN(LOTSALOTS),ROW(INDIRECT(\"1:\"&ROWS(LOTSALOTS))))),ROW(A85)),1),\"\")","v":""}]
[null,null,null,null,null,{"$f":"IFERROR(INDEX(LOTSALOTS,SMALL((IF(LEN(LOTSALOTS),ROW(INDIRECT(\"1:\"&ROWS(LOTSALOTS))))),ROW(A86)),1),\"\")","v":""}]
[null,null,null,null,null,{"$f":"IFERROR(INDEX(LOTSALOTS,SMALL((IF(LEN(LOTSALOTS),ROW(INDIRECT(\"1:\"&ROWS(LOTSALOTS))))),ROW(A87)),1),\"\")","v":""}]
[null,null,null,null,null,{"$f":"IFERROR(INDEX(LOTSALOTS,SMALL((IF(LEN(LOTSALOTS),ROW(INDIRECT(\"1:\"&ROWS(LOTSALOTS))))),ROW(A88)),1),\"\")","v":""}]
[null,null,null,null,null,{"$f":"IFERROR(INDEX(LOTSALOTS,SMALL((IF(LEN(LOTSALOTS),ROW(INDIRECT(\"1:\"&ROWS(LOTSALOTS))))),ROW(A89)),1),\"\")","v":""}]
[null,null,null,null,null,{"$f":"IFERROR(INDEX(LOTSALOTS,SMALL((IF(LEN(LOTSALOTS),ROW(INDIRECT(\"1:\"&ROWS(LOTSALOTS))))),ROW(A90)),1),\"\")","v":""}]
[null,null,null,null,null,{"$f":"IFERROR(INDEX(LOTSALOTS,SMALL((IF(LEN(LOTSALOTS),ROW(INDIRECT(\"1:\"&ROWS(LOTSALOTS))))),ROW(A91)),1),\"\")","v":""}]
[null,null,null,null,null,{"$f":"IFERROR(INDEX(LOTSALOTS,SMALL((IF(LEN(LOTSALOTS),ROW(INDIRECT(\"1:\"&ROWS(LOTSALOTS))))),ROW(A92)),1),\"\")","v":""}]
[null,null,null,null,null,{"$f":"IFERROR(INDEX(LOTSALOTS,SMALL((IF(LEN(LOTSALOTS),ROW(INDIRECT(\"1:\"&ROWS(LOTSALOTS))))),ROW(A93)),1),\"\")","v":""}]
[null,null,null,null,null,{"$f":"IFERROR(INDEX(LOTSALOTS,SMALL((IF(LEN(LOTSALOTS),ROW(INDIRECT(\"1:\"&ROWS(LOTSALOTS))))),ROW(A94)),1),\"\")","v":""}]
[null,null,null,null,null,{"$f":"IFERROR(INDEX(LOTSALOTS,SMALL((IF(LEN(LOTSALOTS),ROW(INDIRECT(\"1:\"&ROWS(LOTSALOTS))))),ROW(A95)),1),\"\")","v":""}]
[null,null,null,null,null,{"$f":"IFERROR(INDEX(LOTSALOTS,SMALL((IF(LEN(LOTSALOTS),ROW(INDIRECT(\"1:\"&ROWS(LOTSALOTS))))),ROW(A96)),1),\"\")","v":""}]
[null,null,null,null,null,{"$f":"IFERROR(INDEX(LOTSALOTS,SMALL((IF(LEN(LOTSALOTS),ROW(INDIRECT(\"1:\"&ROWS(LOTSALOTS))))),ROW(A97)),1),\"\")","v":""}]
[null,null,null,null,null,{"$f":"IFERROR(INDEX(LOTSALOTS,SMALL((IF(LEN(LOTSALOTS),ROW(INDIRECT(\"1:\"&ROWS(LOTSALOTS))))),ROW(A98)),1),\"\")","v":""}]
[null,null,null,null,null,{"$f":"IFERROR(INDEX(LOTSALOTS,SMALL((IF(LEN(LOTSALOTS),ROW(INDIRECT(\"1:\"&ROWS(LOTSALOTS))))),ROW(A99)),1),\"\")","v":""}]
[null,null,null,null,null,{"$f":"IFERROR(INDEX(LOTSALOTS,SMALL((IF(LEN(LOTSALOTS),ROW(INDIRECT(\"1:\"&ROWS(LOTSALOTS))))),ROW(A100)),1),\"\")","v":""}]
[null,null,null,null,"Lot0"]

{"sheet":"DATA_CHART","index":3,"n_rows":403,"n_cols":15,"rows_kept":403,"cut":false,"hidden":true,"merged":[]}
[]
[null,null,"DOT","CON","LO","HI","ISBLANK","ISBLANK","ISBLANK","ISBLANK","ISERROR","ISERROR","ISERROR","ISERROR","Both blank?"]
[1,1.1000000000000001,null,null,null,null,null,null,null,null,null,null,null,null,{"$f":"AND(OR(ISBLANK(C3),ISERROR(C3)),OR(ISBLANK(D3),ISERROR(D3)))","v":true}]
[1,1.2,null,null,null,null,null,null,null,null,null,null,null,null,true]
[1,1.3,null,null,null,null,null,null,null,null,null,null,null,null,true]
[1,1.4,null,null,null,null,null,null,null,null,null,null,null,null,true]
[2,2.1,null,null,null,null,null,null,null,null,null,null,null,null,true]
[2,2.2000000000000002,null,null,null,null,null,null,null,null,null,null,null,null,true]
[2,2.2999999999999998,null,null,null,null,null,null,null,null,null,null,null,null,true]
[2,2.4,null,null,null,null,null,null,null,null,null,null,null,null,true]
[3,3.1,null,null,null,null,null,null,null,null,null,null,null,null,true]
[3,3.2,null,null,null,null,null,null,null,null,null,null,null,null,true]
[3,3.3,null,null,null,null,null,null,null,null,null,null,null,null,true]
[3,3.4,null,null,null,null,null,null,null,null,null,null,null,null,true]
[4,4.0999999999999996,null,null,null,null,null,null,null,null,null,null,null,null,true]
[4,4.2,null,null,null,null,null,null,null,null,null,null,null,null,true]
[4,4.3,null,null,null,null,null,null,null,null,null,null,null,null,true]
[4,4.4000000000000004,null,null,null,null,null,null,null,null,null,null,null,null,true]
[5,5.0999999999999996,null,null,null,null,null,null,null,null,null,null,null,null,true]
[5,5.2,null,null,null,null,null,null,null,null,null,null,null,null,true]
[5,5.3,null,null,null,null,null,null,null,null,null,null,null,null,true]
[5,5.4,null,null,null,null,null,null,null,null,null,null,null,null,true]
[6,6.1,null,null,null,null,null,null,null,null,null,null,null,null,true]
[6,6.2,null,null,null,null,null,null,null,null,null,null,null,null,true]
[6,6.3,null,null,null,null,null,null,null,null,null,null,null,null,true]
[6,6.4,null,null,null,null,null,null,null,null,null,null,null,null,true]
[7,7.1,null,null,null,null,null,null,null,null,null,null,null,null,true]
[7,7.2,null,null,null,null,null,null,null,null,null,null,null,null,true]
[7,7.3,null,null,null,null,null,null,null,null,null,null,null,null,true]
[7,7.4,null,null,null,null,null,null,null,null,null,null,null,null,true]
[8,8.1,null,null,null,null,null,null,null,null,null,null,null,null,true]
[8,8.1999999999999993,null,null,null,null,null,null,null,null,null,null,null,null,true]
[8,8.3000000000000007,null,null,null,null,null,null,null,null,null,null,null,null,true]
[8,8.4,null,null,null,null,null,null,null,null,null,null,null,null,true]
[9,9.1,null,null,null,null,null,null,null,null,null,null,null,null,true]
[9,9.1999999999999993,null,null,null,null,null,null,null,null,null,null,null,null,true]
[9,9.3000000000000007,null,null,null,null,null,null,null,null,null,null,null,null,true]
[9,9.4,null,null,null,null,null,null,null,null,null,null,null,null,true]
[10,10.1,null,null,null,null,null,null,null,null,null,null,null,null,true]
[10,10.199999999999999,null,null,null,null,null,null,null,null,null,null,null,null,true]
[10,10.3,null,null,null,null,null,null,null,null,null,null,null,null,true]
[10,10.4,null,null,null,null,null,null,null,null,null,null,null,null,true]
[11,11.1,null,null,null,null,null,null,null,null,null,null,null,null,true]
[11,11.2,null,null,null,null,null,null,null,null,null,null,null,null,true]
[11,11.3,null,null,null,null,null,null,null,null,null,null,null,null,true]
[11,11.4,null,null,null,null,null,null,null,null,null,null,null,null,true]
[12,12.1,null,null,null,null,null,null,null,null,null,null,null,null,true]
[12,12.2,null,null,null,null,null,null,null,null,null,null,null,null,true]
[12,12.3,null,null,null,null,null,null,null,null,null,null,null,null,true]
[12,12.4,null,null,null,null,null,null,null,null,null,null,null,null,true]
[13,13.1,null,null,null,null,null,null,null,null,null,null,null,null,true]
[13,13.2,null,null,null,null,null,null,null,null,null,null,null,null,true]
[13,13.3,null,null,null,null,null,null,null,null,null,null,null,null,true]
[13,13.4,null,null,null,null,null,null,null,null,null,null,null,null,true]
[14,14.1,null,null,null,null,null,null,null,null,null,null,null,null,true]
[14,14.2,null,null,null,null,null,null,null,null,null,null,null,null,true]
[14,14.3,null,null,null,null,null,null,null,null,null,null,null,null,true]
[14,14.4,null,null,null,null,null,null,null,null,null,null,null,null,true]
[15,15.1,null,null,null,null,null,null,null,null,null,null,null,null,true]
[15,15.2,null,null,null,null,null,null,null,null,null,null,null,null,true]
[15,15.3,null,null,null,null,null,null,null,null,null,null,null,null,true]
[15,15.4,null,null,null,null,null,null,null,null,null,null,null,null,true]
[16,16.100000000000001,null,null,null,null,null,null,null,null,null,null,null,null,true]
[16,16.2,null,null,null,null,null,null,null,null,null,null,null,null,true]
[16,16.3,null,null,null,null,null,null,null,null,null,null,null,null,true]
[16,16.399999999999999,null,null,null,null,null,null,null,null,null,null,null,null,true]
[17,17.100000000000001,null,null,null,null,null,null,null,null,null,null,null,null,{"$f":"AND(OR(ISBLANK(C67),ISERROR(C67)),OR(ISBLANK(D67),ISERROR(D67)))","v":true}]
[17,17.2,null,null,null,null,null,null,null,null,null,null,null,null,true]
[17,17.3,null,null,null,null,null,null,null,null,null,null,null,null,true]
[17,17.399999999999999,null,null,null,null,null,null,null,null,null,null,null,null,true]
[18,18.100000000000001,null,null,null,null,null,null,null,null,null,null,null,null,true]
[18,18.2,null,null,null,null,null,null,null,null,null,null,null,null,true]
[18,18.3,null,null,null,null,null,null,null,null,null,null,null,null,true]
[18,18.399999999999999,null,null,null,null,null,null,null,null,null,null,null,null,true]
[19,19.100000000000001,null,null,null,null,null,null,null,null,null,null,null,null,true]
[19,19.2,null,null,null,null,null,null,null,null,null,null,null,null,true]
[19,19.3,null,null,null,null,null,null,null,null,null,null,null,null,true]
[19,19.399999999999999,null,null,null,null,null,null,null,null,null,null,null,null,true]
[20,20.100000000000001,null,null,null,null,null,null,null,null,null,null,null,null,true]
[20,20.2,null,null,null,null,null,null,null,null,null,null,null,null,true]
[20,20.3,null,null,null,null,null,null,null,null,null,null,null,null,true]
[20,20.399999999999999,null,null,null,null,null,null,null,null,null,null,null,null,true]
[21,21.1,null,null,null,null,null,null,null,null,null,null,null,null,true]
[21,21.2,null,null,null,null,null,null,null,null,null,null,null,null,true]
[21,21.3,null,null,null,null,null,null,null,null,null,null,null,null,true]
[21,21.4,null,null,null,null,null,null,null,null,null,null,null,null,true]
[22,22.1,null,null,null,null,null,null,null,null,null,null,null,null,true]
[22,22.2,null,null,null,null,null,null,null,null,null,null,null,null,true]
[22,22.3,null,null,null,null,null,null,null,null,null,null,null,null,true]
[22,22.4,null,null,null,null,null,null,null,null,null,null,null,null,true]
[23,23.1,null,null,null,null,null,null,null,null,null,null,null,null,true]
[23,23.2,null,null,null,null,null,null,null,null,null,null,null,null,true]
[23,23.3,null,null,null,null,null,null,null,null,null,null,null,null,true]
[23,23.4,null,null,null,null,null,null,null,null,null,null,null,null,true]
[24,24.1,null,null,null,null,null,null,null,null,null,null,null,null,true]
[24,24.2,null,null,null,null,null,null,null,null,null,null,null,null,true]
[24,24.3,null,null,null,null,null,null,null,null,null,null,null,null,true]
[24,24.4,null,null,null,null,null,null,null,null,null,null,null,null,true]
[25,25.1,null,null,null,null,null,null,null,null,null,null,null,null,true]
[25,25.2,null,null,null,null,null,null,null,null,null,null,null,null,true]
[25,25.3,null,null,null,null,null,null,null,null,null,null,null,null,true]
[25,25.4,null,null,null,null,null,null,null,null,null,null,null,null,true]
[26,26.1,null,null,null,null,null,null,null,null,null,null,null,null,true]
[26,26.2,null,null,null,null,null,null,null,null,null,null,null,null,true]
[26,26.3,null,null,null,null,null,null,null,null,null,null,null,null,true]
[26,26.4,null,null,null,null,null,null,null,null,null,null,null,null,true]
[27,27.1,null,null,null,null,null,null,null,null,null,null,null,null,true]
[27,27.2,null,null,null,null,null,null,null,null,null,null,null,null,true]
[27,27.3,null,null,null,null,null,null,null,null,null,null,null,null,true]
[27,27.4,null,null,null,null,null,null,null,null,null,null,null,null,true]
[28,28.1,null,null,null,null,null,null,null,null,null,null,null,null,true]
[28,28.2,null,null,null,null,null,null,null,null,null,null,null,null,true]
[28,28.3,null,null,null,null,null,null,null,null,null,null,null,null,true]
[28,28.4,null,null,null,null,null,null,null,null,null,null,null,null,true]
[29,29.1,null,null,null,null,null,null,null,null,null,null,null,null,true]
[29,29.2,null,null,null,null,null,null,null,null,null,null,null,null,true]
[29,29.3,null,null,null,null,null,null,null,null,null,null,null,null,true]
[29,29.4,null,null,null,null,null,null,null,null,null,null,null,null,true]
[30,30.1,null,null,null,null,null,null,null,null,null,null,null,null,true]
[30,30.2,null,null,null,null,null,null,null,null,null,null,null,null,true]
[30,30.3,null,null,null,null,null,null,null,null,null,null,null,null,true]
[30,30.4,null,null,null,null,null,null,null,null,null,null,null,null,true]
[31,31.1,null,null,null,null,null,null,null,null,null,null,null,null,true]
[31,31.2,null,null,null,null,null,null,null,null,null,null,null,null,true]
[31,31.3,null,null,null,null,null,null,null,null,null,null,null,null,true]
[31,31.4,null,null,null,null,null,null,null,null,null,null,null,null,true]
[32,32.1,null,null,null,null,null,null,null,null,null,null,null,null,true]
[32,32.200000000000003,null,null,null,null,null,null,null,null,null,null,null,null,true]
[32,32.299999999999997,null,null,null,null,null,null,null,null,null,null,null,null,true]
[32,32.4,null,null,null,null,null,null,null,null,null,null,null,null,true]
[33,33.1,null,null,null,null,null,null,null,null,null,null,null,null,{"$f":"AND(OR(ISBLANK(C131),ISERROR(C131)),OR(ISBLANK(D131),ISERROR(D131)))","v":true}]
[33,33.200000000000003,null,null,null,null,null,null,null,null,null,null,null,null,true]
[33,33.299999999999997,null,null,null,null,null,null,null,null,null,null,null,null,true]
[33,33.4,null,null,null,null,null,null,null,null,null,null,null,null,true]
[34,34.1,null,null,null,null,null,null,null,null,null,null,null,null,true]
[34,34.200000000000003,null,null,null,null,null,null,null,null,null,null,null,null,true]
[34,34.299999999999997,null,null,null,null,null,null,null,null,null,null,null,null,true]
[34,34.4,null,null,null,null,null,null,null,null,null,null,null,null,true]
[35,35.1,null,null,null,null,null,null,null,null,null,null,null,null,true]
[35,35.200000000000003,null,null,null,null,null,null,null,null,null,null,null,null,true]
[35,35.299999999999997,null,null,null,null,null,null,null,null,null,null,null,null,true]
[35,35.4,null,null,null,null,null,null,null,null,null,null,null,null,true]
[36,36.1,null,null,null,null,null,null,null,null,null,null,null,null,true]
[36,36.200000000000003,null,null,null,null,null,null,null,null,null,null,null,null,true]
[36,36.299999999999997,null,null,null,null,null,null,null,null,null,null,null,null,true]
[36,36.4,null,null,null,null,null,null,null,null,null,null,null,null,true]
[37,37.1,null,null,null,null,null,null,null,null,null,null,null,null,true]
[37,37.200000000000003,null,null,null,null,null,null,null,null,null,null,null,null,true]
[37,37.299999999999997,null,null,null,null,null,null,null,null,null,null,null,null,true]
[37,37.4,null,null,null,null,null,null,null,null,null,null,null,null,true]
[38,38.1,null,null,null,null,null,null,null,null,null,null,null,null,true]
[38,38.200000000000003,null,null,null,null,null,null,null,null,null,null,null,null,true]
[38,38.299999999999997,null,null,null,null,null,null,null,null,null,null,null,null,true]
[38,38.4,null,null,null,null,null,null,null,null,null,null,null,null,true]
[39,39.1,null,null,null,null,null,null,null,null,null,null,null,null,true]
[39,39.200000000000003,null,null,null,null,null,null,null,null,null,null,null,null,true]
[39,39.299999999999997,null,null,null,null,null,null,null,null,null,null,null,null,true]
[39,39.4,null,null,null,null,null,null,null,null,null,null,null,null,true]
[40,40.1,null,null,null,null,null,null,null,null,null,null,null,null,true]
[40,40.200000000000003,null,null,null,null,null,null,null,null,null,null,null,null,true]
[40,40.299999999999997,null,null,null,null,null,null,null,null,null,null,null,null,true]
[40,40.4,null,null,null,null,null,null,null,null,null,null,null,null,true]
[41,41.1,null,null,null,null,null,null,null,null,null,null,null,null,true]
[41,41.2,null,null,null,null,null,null,null,null,null,null,null,null,true]
[41,41.3,null,null,null,null,null,null,null,null,null,null,null,null,true]
[41,41.4,null,null,null,null,null,null,null,null,null,null,null,null,true]
[42,42.1,null,null,null,null,null,null,null,null,null,null,null,null,true]
[42,42.2,null,null,null,null,null,null,null,null,null,null,null,null,true]
[42,42.3,null,null,null,null,null,null,null,null,null,null,null,null,true]
[42,42.4,null,null,null,null,null,null,null,null,null,null,null,null,true]
[43,43.1,null,null,null,null,null,null,null,null,null,null,null,null,true]
[43,43.2,null,null,null,null,null,null,null,null,null,null,null,null,true]
[43,43.3,null,null,null,null,null,null,null,null,null,null,null,null,true]
[43,43.4,null,null,null,null,null,null,null,null,null,null,null,null,true]
[44,44.1,null,null,null,null,null,null,null,null,null,null,null,null,true]
[44,44.2,null,null,null,null,null,null,null,null,null,null,null,null,true]
[44,44.3,null,null,null,null,null,null,null,null,null,null,null,null,true]
[44,44.4,null,null,null,null,null,null,null,null,null,null,null,null,true]
[45,45.1,null,null,null,null,null,null,null,null,null,null,null,null,true]
[45,45.2,null,null,null,null,null,null,null,null,null,null,null,null,true]
[45,45.3,null,null,null,null,null,null,null,null,null,null,null,null,true]
[45,45.4,null,null,null,null,null,null,null,null,null,null,null,null,true]
[46,46.1,null,null,null,null,null,null,null,null,null,null,null,null,true]
[46,46.2,null,null,null,null,null,null,null,null,null,null,null,null,true]
[46,46.3,null,null,null,null,null,null,null,null,null,null,null,null,true]
[46,46.4,null,null,null,null,null,null,null,null,null,null,null,null,true]
[47,47.1,null,null,null,null,null,null,null,null,null,null,null,null,true]
[47,47.2,null,null,null,null,null,null,null,null,null,null,null,null,true]
[47,47.3,null,null,null,null,null,null,null,null,null,null,null,null,true]
[47,47.4,null,null,null,null,null,null,null,null,null,null,null,null,true]
[48,48.1,null,null,null,null,null,null,null,null,null,null,null,null,true]
[48,48.2,null,null,null,null,null,null,null,null,null,null,null,null,true]
[48,48.3,null,null,null,null,null,null,null,null,null,null,null,null,true]
[48,48.4,null,null,null,null,null,null,null,null,null,null,null,null,true]
[49,49.1,null,null,null,null,null,null,null,null,null,null,null,null,{"$f":"AND(OR(ISBLANK(C195),ISERROR(C195)),OR(ISBLANK(D195),ISERROR(D195)))","v":true}]
[49,49.2,null,null,null,null,null,null,null,null,null,null,null,null,true]
[49,49.3,null,null,null,null,null,null,null,null,null,null,null,null,true]
[49,49.4,null,null,null,null,null,null,null,null,null,null,null,null,true]
[50,50.1,null,null,null,null,null,null,null,null,null,null,null,null,true]
[50,50.2,null,null,null,null,null,null,null,null,null,null,null,null,true]
[50,50.3,null,null,null,null,null,null,null,null,null,null,null,null,true]
[50,50.4,null,null,null,null,null,null,null,null,null,null,null,null,true]
[51,51.1,null,null,null,null,null,null,null,null,null,null,null,null,true]
[51,51.2,null,null,null,null,null,null,null,null,null,null,null,null,true]
[51,51.3,null,null,null,null,null,null,null,null,null,null,null,null,true]
[51,51.4,null,null,null,null,null,null,null,null,null,null,null,null,true]
[52,52.1,null,null,null,null,null,null,null,null,null,null,null,null,true]
[52,52.2,null,null,null,null,null,null,null,null,null,null,null,null,true]
[52,52.3,null,null,null,null,null,null,null,null,null,null,null,null,true]
[52,52.4,null,null,null,null,null,null,null,null,null,null,null,null,true]
[53,53.1,null,null,null,null,null,null,null,null,null,null,null,null,true]
[53,53.2,null,null,null,null,null,null,null,null,null,null,null,null,true]
[53,53.3,null,null,null,null,null,null,null,null,null,null,null,null,true]
[53,53.4,null,null,null,null,null,null,null,null,null,null,null,null,true]
[54,54.1,null,null,null,null,null,null,null,null,null,null,null,null,true]
[54,54.2,null,null,null,null,null,null,null,null,null,null,null,null,true]
[54,54.3,null,null,null,null,null,null,null,null,null,null,null,null,true]
[54,54.4,null,null,null,null,null,null,null,null,null,null,null,null,true]
[55,55.1,null,null,null,null,null,null,null,null,null,null,null,null,true]
[55,55.2,null,null,null,null,null,null,null,null,null,null,null,null,true]
[55,55.3,null,null,null,null,null,null,null,null,null,null,null,null,true]
[55,55.4,null,null,null,null,null,null,null,null,null,null,null,null,true]
[56,56.1,null,null,null,null,null,null,null,null,null,null,null,null,true]
[56,56.2,null,null,null,null,null,null,null,null,null,null,null,null,true]
[56,56.3,null,null,null,null,null,null,null,null,null,null,null,null,true]
[56,56.4,null,null,null,null,null,null,null,null,null,null,null,null,true]
[57,57.1,null,null,null,null,null,null,null,null,null,null,null,null,true]
[57,57.2,null,null,null,null,null,null,null,null,null,null,null,null,true]
[57,57.3,null,null,null,null,null,null,null,null,null,null,null,null,true]
[57,57.4,null,null,null,null,null,null,null,null,null,null,null,null,true]
[58,58.1,null,null,null,null,null,null,null,null,null,null,null,null,true]
[58,58.2,null,null,null,null,null,null,null,null,null,null,null,null,true]
[58,58.3,null,null,null,null,null,null,null,null,null,null,null,null,true]
[58,58.4,null,null,null,null,null,null,null,null,null,null,null,null,true]
[59,59.1,null,null,null,null,null,null,null,null,null,null,null,null,true]
[59,59.2,null,null,null,null,null,null,null,null,null,null,null,null,true]
[59,59.3,null,null,null,null,null,null,null,null,null,null,null,null,true]
[59,59.4,null,null,null,null,null,null,null,null,null,null,null,null,true]
[60,60.1,null,null,null,null,null,null,null,null,null,null,null,null,true]
[60,60.2,null,null,null,null,null,null,null,null,null,null,null,null,true]
[60,60.3,null,null,null,null,null,null,null,null,null,null,null,null,true]
[60,60.4,null,null,null,null,null,null,null,null,null,null,null,null,true]
[61,61.1,null,null,null,null,null,null,null,null,null,null,null,null,true]
[61,61.2,null,null,null,null,null,null,null,null,null,null,null,null,true]
[61,61.3,null,null,null,null,null,null,null,null,null,null,null,null,true]
[61,61.4,null,null,null,null,null,null,null,null,null,null,null,null,true]
[62,62.1,null,null,null,null,null,null,null,null,null,null,null,null,true]
[62,62.2,null,null,null,null,null,null,null,null,null,null,null,null,true]
[62,62.3,null,null,null,null,null,null,null,null,null,null,null,null,true]
[62,62.4,null,null,null,null,null,null,null,null,null,null,null,null,true]
[63,63.1,null,null,null,null,null,null,null,null,null,null,null,null,true]
[63,63.2,null,null,null,null,null,null,null,null,null,null,null,null,true]
[63,63.3,null,null,null,null,null,null,null,null,null,null,null,null,true]
[63,63.4,null,null,null,null,null,null,null,null,null,null,null,null,true]
[64,64.099999999999994,null,null,null,null,null,null,null,null,null,null,null,null,true]
[64,64.2,null,null,null,null,null,null,null,null,null,null,null,null,true]
[64,64.3,null,null,null,null,null,null,null,null,null,null,null,null,true]
[64,64.400000000000006,null,null,null,null,null,null,null,null,null,null,null,null,true]
[65,65.099999999999994,null,null,null,null,null,null,null,null,null,null,null,null,{"$f":"AND(OR(ISBLANK(C259),ISERROR(C259)),OR(ISBLANK(D259),ISERROR(D259)))","v":true}]
[65,65.2,null,null,null,null,null,null,null,null,null,null,null,null,true]
[65,65.3,null,null,null,null,null,null,null,null,null,null,null,null,true]
[65,65.400000000000006,null,null,null,null,null,null,null,null,null,null,null,null,true]
[66,66.099999999999994,null,null,null,null,null,null,null,null,null,null,null,null,true]
[66,66.2,null,null,null,null,null,null,null,null,null,null,null,null,true]
[66,66.3,null,null,null,null,null,null,null,null,null,null,null,null,true]
[66,66.400000000000006,null,null,null,null,null,null,null,null,null,null,null,null,true]
[67,67.099999999999994,null,null,null,null,null,null,null,null,null,null,null,null,true]
[67,67.2,null,null,null,null,null,null,null,null,null,null,null,null,true]
[67,67.3,null,null,null,null,null,null,null,null,null,null,null,null,true]
[67,67.400000000000006,null,null,null,null,null,null,null,null,null,null,null,null,true]
[68,68.099999999999994,null,null,null,null,null,null,null,null,null,null,null,null,true]
[68,68.2,null,null,null,null,null,null,null,null,null,null,null,null,true]
[68,68.3,null,null,null,null,null,null,null,null,null,null,null,null,true]
[68,68.400000000000006,null,null,null,null,null,null,null,null,null,null,null,null,true]
[69,69.099999999999994,null,null,null,null,null,null,null,null,null,null,null,null,true]
[69,69.2,null,null,null,null,null,null,null,null,null,null,null,null,true]
[69,69.3,null,null,null,null,null,null,null,null,null,null,null,null,true]
[69,69.400000000000006,null,null,null,null,null,null,null,null,null,null,null,null,true]
[70,70.099999999999994,null,null,null,null,null,null,null,null,null,null,null,null,true]
[70,70.2,null,null,null,null,null,null,null,null,null,null,null,null,true]
[70,70.3,null,null,null,null,null,null,null,null,null,null,null,null,true]
[70,70.400000000000006,null,null,null,null,null,null,null,null,null,null,null,null,true]
[71,71.099999999999994,null,null,null,null,null,null,null,null,null,null,null,null,true]
[71,71.2,null,null,null,null,null,null,null,null,null,null,null,null,true]
[71,71.3,null,null,null,null,null,null,null,null,null,null,null,null,true]
[71,71.400000000000006,null,null,null,null,null,null,null,null,null,null,null,null,true]
[72,72.099999999999994,null,null,null,null,null,null,null,null,null,null,null,null,true]
[72,72.2,null,null,null,null,null,null,null,null,null,null,null,null,true]
[72,72.3,null,null,null,null,null,null,null,null,null,null,null,null,true]
[72,72.400000000000006,null,null,null,null,null,null,null,null,null,null,null,null,true]
[73,73.099999999999994,null,null,null,null,null,null,null,null,null,null,null,null,true]
[73,73.2,null,null,null,null,null,null,null,null,null,null,null,null,true]
[73,73.3,null,null,null,null,null,null,null,null,null,null,null,null,true]
[73,73.400000000000006,null,null,null,null,null,null,null,null,null,null,null,null,true]
[74,74.099999999999994,null,null,null,null,null,null,null,null,null,null,null,null,true]
[74,74.2,null,null,null,null,null,null,null,null,null,null,null,null,true]
[74,74.3,null,null,null,null,null,null,null,null,null,null,null,null,true]
[74,74.400000000000006,null,null,null,null,null,null,null,null,null,null,null,null,true]
[75,75.099999999999994,null,null,null,null,null,null,null,null,null,null,null,null,true]
[75,75.2,null,null,null,null,null,null,null,null,null,null,null,null,true]
[75,75.3,null,null,null,null,null,null,null,null,null,null,null,null,true]
[75,75.400000000000006,null,null,null,null,null,null,null,null,null,null,null,null,true]
[76,76.099999999999994,null,null,null,null,null,null,null,null,null,null,null,null,true]
[76,76.2,null,null,null,null,null,null,null,null,null,null,null,null,true]
[76,76.3,null,null,null,null,null,null,null,null,null,null,null,null,true]
[76,76.400000000000006,null,null,null,null,null,null,null,null,null,null,null,null,true]
[77,77.099999999999994,null,null,null,null,null,null,null,null,null,null,null,null,true]
[77,77.2,null,null,null,null,null,null,null,null,null,null,null,null,true]
[77,77.3,null,null,null,null,null,null,null,null,null,null,null,null,true]
[77,77.400000000000006,null,null,null,null,null,null,null,null,null,null,null,null,true]
[78,78.099999999999994,null,null,null,null,null,null,null,null,null,null,null,null,true]
[78,78.2,null,null,null,null,null,null,null,null,null,null,null,null,true]
[78,78.3,null,null,null,null,null,null,null,null,null,null,null,null,true]
[78,78.400000000000006,null,null,null,null,null,null,null,null,null,null,null,null,true]
[79,79.099999999999994,null,null,null,null,null,null,null,null,null,null,null,null,true]
[79,79.2,null,null,null,null,null,null,null,null,null,null,null,null,true]
[79,79.3,null,null,null,null,null,null,null,null,null,null,null,null,true]
[79,79.400000000000006,null,null,null,null,null,null,null,null,null,null,null,null,true]
[80,80.099999999999994,null,null,null,null,null,null,null,null,null,null,null,null,true]
[80,80.2,null,null,null,null,null,null,null,null,null,null,null,null,true]
[80,80.3,null,null,null,null,null,null,null,null,null,null,null,null,true]
[80,80.400000000000006,null,null,null,null,null,null,null,null,null,null,null,null,true]
[81,81.099999999999994,null,null,null,null,null,null,null,null,null,null,null,null,{"$f":"AND(OR(ISBLANK(C323),ISERROR(C323)),OR(ISBLANK(D323),ISERROR(D323)))","v":true}]
[81,81.2,null,null,null,null,null,null,null,null,null,null,null,null,true]
[81,81.3,null,null,null,null,null,null,null,null,null,null,null,null,true]
[81,81.400000000000006,null,null,null,null,null,null,null,null,null,null,null,null,true]
[82,82.1,null,null,null,null,null,null,null,null,null,null,null,null,true]
[82,82.2,null,null,null,null,null,null,null,null,null,null,null,null,true]
[82,82.3,null,null,null,null,null,null,null,null,null,null,null,null,true]
[82,82.4,null,null,null,null,null,null,null,null,null,null,null,null,true]
[83,83.1,null,null,null,null,null,null,null,null,null,null,null,null,true]
[83,83.2,null,null,null,null,null,null,null,null,null,null,null,null,true]
[83,83.3,null,null,null,null,null,null,null,null,null,null,null,null,true]
[83,83.4,null,null,null,null,null,null,null,null,null,null,null,null,true]
[84,84.1,null,null,null,null,null,null,null,null,null,null,null,null,true]
[84,84.2,null,null,null,null,null,null,null,null,null,null,null,null,true]
[84,84.3,null,null,null,null,null,null,null,null,null,null,null,null,true]
[84,84.4,null,null,null,null,null,null,null,null,null,null,null,null,true]
[85,85.1,null,null,null,null,null,null,null,null,null,null,null,null,true]
[85,85.2,null,null,null,null,null,null,null,null,null,null,null,null,true]
[85,85.3,null,null,null,null,null,null,null,null,null,null,null,null,true]
[85,85.4,null,null,null,null,null,null,null,null,null,null,null,null,true]
[86,86.1,null,null,null,null,null,null,null,null,null,null,null,null,true]
[86,86.2,null,null,null,null,null,null,null,null,null,null,null,null,true]
[86,86.3,null,null,null,null,null,null,null,null,null,null,null,null,true]
[86,86.4,null,null,null,null,null,null,null,null,null,null,null,null,true]
[87,87.1,null,null,null,null,null,null,null,null,null,null,null,null,true]
[87,87.2,null,null,null,null,null,null,null,null,null,null,null,null,true]
[87,87.3,null,null,null,null,null,null,null,null,null,null,null,null,true]
[87,87.4,null,null,null,null,null,null,null,null,null,null,null,null,true]
[88,88.1,null,null,null,null,null,null,null,null,null,null,null,null,true]
[88,88.2,null,null,null,null,null,null,null,null,null,null,null,null,true]
[88,88.3,null,null,null,null,null,null,null,null,null,null,null,null,true]
[88,88.4,null,null,null,null,null,null,null,null,null,null,null,null,true]
[89,89.1,null,null,null,null,null,null,null,null,null,null,null,null,true]
[89,89.2,null,null,null,null,null,null,null,null,null,null,null,null,true]
[89,89.3,null,null,null,null,null,null,null,null,null,null,null,null,true]
[89,89.4,null,null,null,null,null,null,null,null,null,null,null,null,true]
[90,90.1,null,null,null,null,null,null,null,null,null,null,null,null,true]
[90,90.2,null,null,null,null,null,null,null,null,null,null,null,null,true]
[90,90.3,null,null,null,null,null,null,null,null,null,null,null,null,true]
[90,90.4,null,null,null,null,null,null,null,null,null,null,null,null,true]
[91,91.1,null,null,null,null,null,null,null,null,null,null,null,null,true]
[91,91.2,null,null,null,null,null,null,null,null,null,null,null,null,true]
[91,91.3,null,null,null,null,null,null,null,null,null,null,null,null,true]
[91,91.4,null,null,null,null,null,null,null,null,null,null,null,null,true]
[92,92.1,null,null,null,null,null,null,null,null,null,null,null,null,true]
[92,92.2,null,null,null,null,null,null,null,null,null,null,null,null,true]
[92,92.3,null,null,null,null,null,null,null,null,null,null,null,null,true]
[92,92.4,null,null,null,null,null,null,null,null,null,null,null,null,true]
[93,93.1,null,null,null,null,null,null,null,null,null,null,null,null,true]
[93,93.2,null,null,null,null,null,null,null,null,null,null,null,null,true]
[93,93.3,null,null,null,null,null,null,null,null,null,null,null,null,true]
[93,93.4,null,null,null,null,null,null,null,null,null,null,null,null,true]
[94,94.1,null,null,null,null,null,null,null,null,null,null,null,null,true]
[94,94.2,null,null,null,null,null,null,null,null,null,null,null,null,true]
[94,94.3,null,null,null,null,null,null,null,null,null,null,null,null,true]
[94,94.4,null,null,null,null,null,null,null,null,null,null,null,null,true]
[95,95.1,null,null,null,null,null,null,null,null,null,null,null,null,true]
[95,95.2,null,null,null,null,null,null,null,null,null,null,null,null,true]
[95,95.3,null,null,null,null,null,null,null,null,null,null,null,null,true]
[95,95.4,null,null,null,null,null,null,null,null,null,null,null,null,true]
[96,96.1,null,null,null,null,null,null,null,null,null,null,null,null,true]
[96,96.2,null,null,null,null,null,null,null,null,null,null,null,null,true]
[96,96.3,null,null,null,null,null,null,null,null,null,null,null,null,true]
[96,96.4,null,null,null,null,null,null,null,null,null,null,null,null,true]
[97,97.1,null,null,null,null,null,null,null,null,null,null,null,null,{"$f":"AND(OR(ISBLANK(C387),ISERROR(C387)),OR(ISBLANK(D387),ISERROR(D387)))","v":true}]
[97,97.2,null,null,null,null,null,null,null,null,null,null,null,null,true]
[97,97.3,null,null,null,null,null,null,null,null,null,null,null,null,true]
[97,97.4,null,null,null,null,null,null,null,null,null,null,null,null,true]
[98,98.1,null,null,null,null,null,null,null,null,null,null,null,null,true]
[98,98.2,null,null,null,null,null,null,null,null,null,null,null,null,true]
[98,98.3,null,null,null,null,null,null,null,null,null,null,null,null,true]
[98,98.4,null,null,null,null,null,null,null,null,null,null,null,null,true]
[99,99.1,null,null,null,null,null,null,null,null,null,null,null,null,true]
[99,99.2,null,null,null,null,null,null,null,null,null,null,null,null,true]
[99,99.3,null,null,null,null,null,null,null,null,null,null,null,null,true]
[99,99.4,null,null,null,null,null,null,null,null,null,null,null,null,true]
[]
[null,null,{"$f":"IF(K400,NA(),IF(G400,NA(),INDIRECT(\"Lot\"&$A400&\"!G\"&PARAM)))","v":{"$error":"#N/A"}},{"$f":"IF(L400,NA(),IF(H400,NA(),INDIRECT(\"Lot\"&$A400&\"!K\"&PARAM)))","v":{"$error":"#N/A"}},{"$f":"IF(M400,NA(),IF(I400,NA(),INDIRECT(\"Lot\"&$A400&\"!E\"&PARAM)))","v":{"$error":"#N/A"}},{"$f":"IF(N400,NA(),IF(J400,NA(),INDIRECT(\"Lot\"&$A400&\"!F\"&PARAM)))","v":{"$error":"#N/A"}},{"$f":"ISBLANK(INDIRECT(\"Lot\"&$A400&\"!G\"&PARAM))","v":false},{"$f":"ISBLANK(INDIRECT(\"Lot\"&$A400&\"!K\"&PARAM))","v":false},{"$f":"ISBLANK(INDIRECT(\"Lot\"&$A400&\"!E\"&PARAM))","v":false},{"$f":"ISBLANK(INDIRECT(\"Lot\"&$A400&\"!F\"&PARAM))","v":false},{"$f":"ISERROR(INDIRECT(\"Lot\"&$A400&\"!G\"&PARAM))","v":true},{"$f":"ISERROR(INDIRECT(\"Lot\"&$A400&\"!K\"&PARAM))","v":true},{"$f":"ISERROR(INDIRECT(\"Lot\"&$A400&\"!E\"&PARAM))","v":true},{"$f":"ISERROR(INDIRECT(\"Lot\"&$A400&\"!F\"&PARAM))","v":true}]
[null,null,{"$f":"IF(K401,NA(),IF(G401,NA(),INDIRECT(\"Lot\"&$A401&\"!H\"&PARAM)))","v":{"$error":"#N/A"}},{"$f":"IF(L401,NA(),IF(H401,NA(),INDIRECT(\"Lot\"&$A401&\"!L\"&PARAM)))","v":{"$error":"#N/A"}},{"$error":"#N/A"},{"$error":"#N/A"},{"$f":"ISBLANK(INDIRECT(\"Lot\"&$A401&\"!H\"&PARAM))","v":false},{"$f":"ISBLANK(INDIRECT(\"Lot\"&$A401&\"!L\"&PARAM))","v":false},false,false,{"$f":"ISERROR(INDIRECT(\"Lot\"&$A401&\"!H\"&PARAM))","v":true},{"$f":"ISERROR(INDIRECT(\"Lot\"&$A401&\"!L\"&PARAM))","v":true},true,true]
[null,null,{"$f":"IF(K402,NA(),IF(G402,NA(),INDIRECT(\"Lot\"&$A402&\"!I\"&PARAM)))","v":{"$error":"#N/A"}},{"$f":"IF(L402,NA(),IF(H402,NA(),INDIRECT(\"Lot\"&$A402&\"!M\"&PARAM)))","v":{"$error":"#N/A"}},{"$error":"#N/A"},{"$error":"#N/A"},{"$f":"ISBLANK(INDIRECT(\"Lot\"&$A402&\"!I\"&PARAM))","v":false},{"$f":"ISBLANK(INDIRECT(\"Lot\"&$A402&\"!M\"&PARAM))","v":false},false,false,{"$f":"ISERROR(INDIRECT(\"Lot\"&$A402&\"!I\"&PARAM))","v":true},{"$f":"ISERROR(INDIRECT(\"Lot\"&$A402&\"!M\"&PARAM))","v":true},true,true]
[null,null,{"$f":"IF(K403,NA(),IF(G403,NA(),INDIRECT(\"Lot\"&$A403&\"!J\"&PARAM)))","v":{"$error":"#N/A"}},{"$f":"IF(L403,NA(),IF(H403,NA(),INDIRECT(\"Lot\"&$A403&\"!N\"&PARAM)))","v":{"$error":"#N/A"}},{"$f":"IF(M403,NA(),IF(I403,NA(),INDIRECT(\"Lot\"&$A403&\"!E\"&PARAM)))","v":{"$error":"#N/A"}},{"$f":"IF(N403,NA(),IF(J403,NA(),INDIRECT(\"Lot\"&$A403&\"!F\"&PARAM)))","v":{"$error":"#N/A"}},{"$f":"ISBLANK(INDIRECT(\"Lot\"&$A403&\"!J\"&PARAM))","v":false},{"$f":"ISBLANK(INDIRECT(\"Lot\"&$A403&\"!N\"&PARAM))","v":false},false,false,{"$f":"ISERROR(INDIRECT(\"Lot\"&$A403&\"!J\"&PARAM))","v":true},{"$f":"ISERROR(INDIRECT(\"Lot\"&$A403&\"!N\"&PARAM))","v":true},true,true]